bitfinex-derivatives/quotes_SOLF0:USTF0_20250606
["timestamp","ask_amount","ask_price","bid_price","bid_amount"]
[1749174363966,35.58,145.27,145.23,6.8823]
[1749174364171,6.30102645,145.26,145.23,6.8823]
[1749174364371,0.0502652,145.26,145.23,6.93097248]
[1749174364575,0.0502652,145.26,145.24,6.8819]
[1749174364773,0.0502652,145.26,145.23,5.02030431]
[1749174365176,0.0502652,145.26,145.25,4.97163183]
[1749174365880,0.0502652,145.26,145.25,11.85313183]
[1749174366179,0.0502652,145.26,145.25,6.8815]
[1749174367576,0.0502652,145.26,145.25,10.06411756]
[1749174367770,0.0502652,145.26,145.25,6.8815]
[1749174368977,0.0502652,145.26,145.25,10.06411756]
[1749174378088,6.6696,145.34,145.25,3.18261756]
[1749174378089,10.79680316,145.34,145.25,3.18261756]
[1749174378292,6.29236481,145.33,145.3,3.18261756]
[1749174378592,6.29236481,145.32,145.3,3.18261756]
[1749174378794,6.29236481,145.31,145.3,10.06171756]
[1749174379090,0.04607497,145.32,145.3,10.06171756]
[1749174379291,6.2951271,145.31,145.3,6.8791]
[1749174379791,6.2951271,145.31,145.29,3.22610366]
[1749174380091,0.04607497,145.32,145.29,3.22610366]
[1749174380292,6.29652715,145.31,145.29,0.0434861]
[1749174380488,6.29651615,145.3,145.29,0.0434861]
[1749174380691,10.10689253,145.32,145.29,0.0434861]
[1749174380990,6.29667244,145.31,145.29,0.0434861]
[1749174381190,6.92427497,145.32,145.29,0.0434861]
[1749174381393,6.29742808,145.31,145.29,0.0434861]
[1749174381688,6.92427497,145.32,145.29,0.0434861]
[1749174381888,6.2979971,145.31,145.29,0.0434861]
[1749174382088,6.92427497,145.32,145.29,0.0434861]
[1749174382294,6.30222682,145.31,145.29,0.0434861]
[1749174382496,6.92427497,145.32,145.29,0.0434861]
[1749174382696,6.30577435,145.31,145.29,0.0434861]
[1749174382894,6.92427497,145.32,145.29,0.0434861]
[1749174383195,6.30504414,145.31,145.29,0.0434861]
[1749174383391,6.92427497,145.32,145.29,0.0434861]
[1749174383693,6.30567127,145.31,145.29,0.0434861]
[1749174383894,6.92427497,145.32,145.29,0.0434861]
[1749174384095,6.3073633,145.31,145.29,0.0434861]
[1749174384298,6.30836831,145.3,145.29,0.0434861]
[1749174385496,6.30836831,145.3,145.29,6.9230861]
[1749174393105,51.66419462,145.3,145.24,39.9799]
[1749174393307,6.30836831,145.29,145.24,39.9799]
[1749174393503,40.51043687,145.3,145.24,4.3999]
[1749174393504,6.30836831,145.28,145.24,4.3999]
[1749174393807,6.30836831,145.27,145.25,6.8812]
[1749174394005,6.8799,145.29,145.25,6.8812]
[1749174394204,0.04568426,145.27,145.25,6.92727199]
[1749174394615,6.31307946,145.26,145.25,6.92727199]
[1749174395608,0.04568426,145.27,145.25,6.92727199]
[1749174395807,6.32057869,145.26,145.25,6.92727199]
[1749174396008,0.04568426,145.27,145.25,6.92727199]
[1749174396508,6.31520799,145.26,145.25,0.04607199]
[1749174400010,11.28564486,145.26,145.22,6.8828]
[1749174400314,6.31520799,145.25,145.22,6.8828]
[1749174400607,6.31520799,145.24,145.22,6.8828]
[1749174400803,6.31520799,145.23,145.22,6.8828]
[1749174401008,6.31520799,145.23,145.21,6.93384884]
[1749174401208,6.31520799,145.22,145.21,6.93384884]
[1749174401403,6.31520799,145.22,145.21,0.05054884]
[1749174404513,6.29398417,145.22,145.21,0.05054884]
[1749174405515,18.14732104,145.22,145.21,0.05054884]
[1749174405814,53.70732104,145.22,145.21,0.05054884]
[1749174406719,41.85398417,145.22,145.21,0.05054884]
[1749174406919,0.0514893,145.24,145.21,0.05054884]
[1749174407119,0.0514893,145.24,145.21,5.02098571]
[1749174407314,0.0514893,145.24,145.23,6.8825]
[1749174407513,6.33313078,145.24,145.21,0.05054884]
[1749174407824,0.0514893,145.24,145.21,6.93384884]
[1749174412114,0.0514893,145.24,145.22,6.8829]
[1749174412314,0.0514893,145.24,145.21,0.05054884]
[1749174412722,0.0514893,145.24,145.23,6.8825]
[1749174415529,35.56,145.28,145.27,6.8806]
[1749174415922,35.52,145.31,145.26,4.97043687]
[1749174416123,6.27394888,145.3,145.26,4.97043687]
[1749174416322,0.05001617,145.29,145.27,0.05207396]
[1749174416920,0.05001617,145.29,145.28,6.8798]
[1749174418323,0.05001617,145.29,145.27,0.05207396]
[1749174418324,0.05001617,145.29,145.27,6.93247396]
[1749174420223,6.92971617,145.29,145.27,0.05207396]
[1749174421126,6.27988797,145.28,145.27,0.05207396]
[1749174421925,13.15998797,145.28,145.27,0.05207396]
[1749174426233,6.27988797,145.28,145.27,0.05207396]
[1749174426432,0.05001617,145.29,145.27,0.05207396]
[1749174426826,0.05001617,145.29,145.28,6.8801]
[1749174427829,0.05001617,145.29,145.27,5.02251083]
[1749174428634,0.05001617,145.29,145.27,11.90271083]
[1749174428836,0.05001617,145.29,145.27,5.02251083]
[1749174429837,0.05001617,145.29,145.28,6.8801]
[1749174431338,0.05001617,145.29,145.27,11.90291083]
[1749174431535,0.05001617,145.29,145.27,5.02251083]
[1749174432739,0.05001617,145.29,145.28,6.8801]
[1749174433929,0.05001617,145.29,145.27,11.90291083]
[1749174434238,0.05001617,145.29,145.27,5.02251083]
[1749174435430,0.05001617,145.29,145.28,6.8801]
[1749174435632,44.26774812,145.36,145.27,5.02251083]
[1749174435829,6.31084213,145.35,145.3,4.97043687]
[1749174436035,6.31084213,145.34,145.3,4.97043687]
[1749174436231,37.8544,145.36,145.3,4.97043687]
[1749174436435,6.31218593,145.35,145.3,4.97043687]
[1749174436738,0.04426733,145.34,145.31,0.04669505]
[1749174437539,0.04426733,145.34,145.31,6.92489505]
[1749174438141,6.31044472,145.33,145.31,0.04669505]
[1749174438338,0.04426733,145.34,145.31,0.04669505]
[1749174438635,13.18861254,145.33,145.31,0.04669505]
[1749174438834,5.0147042,145.34,145.31,0.04669505]
[1749174439040,6.31781691,145.33,145.31,0.04669505]
[1749174439342,48.71601691,145.32,145.31,0.04669505]
[1749174440634,41.83781691,145.32,145.31,6.92539505]
[1749174440840,35.52,145.32,145.31,11.89583192]
[1749174441041,0.04426733,145.34,145.31,5.01713192]
[1749174441242,0.04426733,145.34,145.32,6.8778]
[1749174442941,0.04426733,145.34,145.31,11.89563192]
[1749174443142,0.04426733,145.34,145.31,5.01713192]
[1749174443535,0.04426733,145.34,145.32,6.8779]
[1749174443743,0.04426733,145.34,145.31,5.01713192]
[1749174444143,0.04426733,145.34,145.31,11.89563192]
[1749174445747,6.92176733,145.34,145.31,0.04669505]
[1749174446145,6.32109598,145.33,145.31,0.04669505]
[1749174446345,6.92176733,145.34,145.31,6.92529505]
[1749174446646,6.32282848,145.33,145.31,6.92529505]
[1749174446846,6.92176733,145.34,145.31,6.92529505]
[1749174447043,6.32334047,145.33,145.31,6.92529505]
[1749174447344,6.92176733,145.34,145.31,0.04669505]
[1749174447545,6.32335509,145.33,145.31,0.04669505]
[1749174447744,6.92176733,145.34,145.31,0.04669505]
[1749174448051,6.32313054,145.33,145.31,0.04669505]
[1749174448243,6.92176733,145.34,145.31,0.04669505]
[1749174448443,6.32324227,145.33,145.31,0.04669505]
[1749174448647,6.32396071,145.32,145.31,0.04669505]
[1749174449248,13.20216071,145.32,145.31,0.04669505]
[1749174458053,18.01057279,145.32,145.31,0.04669505]
[1749174458456,18.17259758,145.32,145.31,0.04669505]
[1749174458651,22.97649158,145.32,145.31,0.04669505]
[1749174458956,18.17259758,145.32,145.31,0.04669505]
[1749174459357,22.97660474,145.32,145.31,0.04669505]
[1749174459857,58.43660474,145.32,145.31,0.04669505]
[1749174460057,58.43739872,145.32,145.31,0.04669505]
[1749174460659,58.43762956,145.32,145.31,0.04669505]
[1749174460856,57.97239955,145.32,145.26,11.73163687]
[1749174461054,6.32396071,145.31,145.26,11.73163687]
[1749174461349,6.32396071,145.3,145.26,11.73163687]
[1749174461659,6.32396071,145.29,145.28,6.88]
[1749174461960,6.37656161,145.29,145.28,6.88]
[1749174463260,0.0526009,145.29,145.28,6.88]
[1749174464160,6.3968406,145.29,145.28,6.88]
[1749174464859,0.0526009,145.29,145.28,6.88]
[1749174465250,0.0526009,145.29,145.28,11.85043687]
[1749174469055,0.0526009,145.29,145.28,6.88]
[1749174469461,6.39929271,145.29,145.28,6.88]
[1749174472467,6.39929271,145.29,145.27,6.93049713]
[1749174472665,6.34669181,145.28,145.27,6.93049713]
[1749174477072,0.0526009,145.29,145.28,6.8801]
[1749174477370,6.40597585,145.29,145.28,6.8801]
[1749174486477,0.0526009,145.29,145.28,6.8801]
[1749174486678,35.46,145.32,145.31,6.8787]
[1749174486871,41.82626043,145.32,145.31,6.8787]
[1749174487071,6.36626043,145.32,145.31,6.8787]
[1749174488365,6.36626043,145.32,145.31,11.84913687]
[1749174490474,0.05145852,145.33,145.32,6.8782]
[1749174490677,6.3620192,145.33,145.32,6.8782]
[1749174495285,6.3620192,145.33,145.32,11.84863687]
[1749174495574,41.81334812,145.38,145.35,6.8767]
[1749174495775,11.17447459,145.37,145.34,4.97043687]
[1749174495980,6.31083702,145.36,145.34,4.97043687]
[1749174496183,6.31083702,145.35,145.34,11.84763687]
[1749174497275,0.04928418,145.36,145.35,6.8768]
[1749174504875,0.04928418,145.36,145.34,4.97043687]
[1749174504876,35.4,145.42,145.34,4.97043687]
[1749174505077,35.4,145.42,145.37,4.97043687]
[1749174505280,41.81334812,145.45,145.39,4.97043687]
[1749174505483,6.22368947,145.44,145.41,6.8736]
[1749174505682,6.22368947,145.43,145.41,6.8736]
[1749174505986,0.05172008,145.43,145.41,6.92089353]
[1749174506277,0.05172008,145.43,145.41,0.04729353]
[1749174507086,0.05172008,145.43,145.41,6.92109353]
[1749174507378,0.05172008,145.43,145.41,0.04729353]
[1749174507581,0.05172008,145.43,145.41,5.0177304]
[1749174507789,0.05172008,145.43,145.42,6.8735]
[1749174508783,0.05172008,145.43,145.41,0.04729353]
[1749174511886,0.05172008,145.43,145.41,6.92119353]
[1749174512188,6.92482008,145.43,145.41,0.04729353]
[1749174514286,0.05172008,145.43,145.41,0.04729353]
[1749174515489,0.05172008,145.43,145.41,6.92119353]
[1749174515689,0.05172008,145.43,145.41,0.04729353]
[1749174516790,6.92472008,145.43,145.41,0.04729353]
[1749174517391,0.05172008,145.43,145.41,0.04729353]
[1749174519198,6.92472008,145.43,145.41,0.04729353]
[1749174519389,5.02215695,145.43,145.41,0.04729353]
[1749174519586,6.20561107,145.42,145.41,0.04729353]
[1749174519989,13.07911107,145.42,145.41,0.04729353]
[1749174520288,6.8735,145.42,145.41,0.04729353]
[1749174520593,13.08243633,145.42,145.41,0.04729353]
[1749174520790,6.8735,145.42,145.41,0.04729353]
[1749174521394,11.80322802,145.42,145.41,0.04729353]
[1749174521795,11.80564438,145.42,145.41,0.04729353]
[1749174522097,6.8735,145.42,145.41,0.04729353]
[1749174522397,11.80601972,145.42,145.41,0.04729353]
[1749174522596,6.8735,145.42,145.41,0.04729353]
[1749174524794,11.12603875,145.42,145.33,4.97043687]
[1749174524999,4.97043687,145.39,145.32,35.34]
[1749174525196,11.12603875,145.38,145.32,35.34]
[1749174525396,4.97043687,145.39,145.32,35.34]
[1749174525596,6.20250526,145.38,145.32,35.34]
[1749174525899,0.04521736,145.36,145.34,6.925246]
[1749174528299,6.92171736,145.36,145.34,0.048046]
[1749174528500,0.04521736,145.36,145.34,0.048046]
[1749174531299,6.19766149,145.35,145.34,0.048046]
[1749174531695,13.07446149,145.35,145.34,0.048046]
[1749174531999,13.07446149,145.35,145.29,35.34]
[1749174532000,11.081838,145.35,145.26,46.86213687]
[1749174532196,4.97043687,145.33,145.28,6.88]
[1749174532399,4.97043687,145.33,145.26,46.86213687]
[1749174532400,40.31043687,145.33,145.26,46.86213687]
[1749174532803,0.04907956,145.31,145.28,0.05053324]
[1749174533704,0.04907956,145.31,145.29,6.8796]
[1749174534905,0.04907956,145.31,145.3,6.8791]
[1749174535306,0.04907956,145.31,145.29,6.8794]
[1749174539212,6.8796,145.29,145.28,0.05053324]
[1749174539411,41.47845561,145.29,145.21,436.33043687]
[1749174539612,4.97043687,145.28,145.21,436.33043687]
[1749174539809,6.8806,145.27,145.23,6.8822]
[1749174540415,0.05083521,145.26,145.24,0.05098466]
[1749174541608,6.8815,145.25,145.24,0.05098466]
[1749174544316,6.8824,145.24,145.2,9.112]
[1749174544519,11.85283687,145.24,145.2,6.8838]
[1749174545412,0.04570617,145.23,145.21,0.04561482]
[1749174546019,6.92830617,145.23,145.21,0.04561482]
[1749174549518,0.04570617,145.23,145.21,0.04561482]
[1749174550820,6.92820617,145.23,145.21,0.04561482]
[1749174552622,0.04570617,145.23,145.21,0.04561482]
[1749174555730,0.04570617,145.23,145.21,6.92881482]
[1749174556125,0.04570617,145.23,145.21,0.04561482]
[1749174556427,0.04570617,145.23,145.21,6.92901482]
[1749174559134,0.04570617,145.23,145.21,0.04561482]
[1749174560634,0.04570617,145.23,145.21,6.92871482]
[1749174560833,0.04570617,145.23,145.21,0.04561482]
[1749174561135,0.04570617,145.23,145.22,6.8829]
[1749174561940,0.04570617,145.23,145.21,6.92881482]
[1749174562639,0.04570617,145.23,145.22,6.8829]
[1749174563642,0.04570617,145.23,145.21,6.92881482]
[1749174564841,0.04570617,145.23,145.22,6.8829]
[1749174565542,0.04570617,145.23,145.21,0.04561482]
[1749174567839,0.04570617,145.23,145.22,6.8829]
[1749174572343,0.04570617,145.23,145.22,11.85333687]
[1749174573939,0.04570617,145.23,145.22,6.8829]
[1749174574848,0.04570617,145.23,145.21,16.26315169]
[1749174575049,0.04570617,145.23,145.21,11.89915169]
[1749174575540,0.04570617,145.23,145.21,5.01605169]
[1749174575848,0.04570617,145.23,145.22,6.8829]
[1749174576545,4.88250857,145.23,145.22,6.8829]
[1749174576845,4.88250838,145.23,145.22,6.8829]
[1749174577446,4.88238939,145.23,145.22,6.8829]
[1749174577641,4.88238872,145.23,145.22,6.8829]
[1749174577838,0.04570617,145.23,145.22,6.8829]
[1749174578042,4.88238863,145.23,145.22,6.8829]
[1749174578241,0.04570617,145.23,145.22,6.8829]
[1749174578642,4.88239142,145.23,145.22,6.8829]
[1749174579647,4.8804834,145.23,145.22,6.8829]
[1749174579849,0.04570617,145.23,145.22,6.8829]
[1749174580347,4.88048406,145.23,145.22,6.8829]
[1749174580749,0.04570617,145.23,145.22,6.8829]
[1749174580944,4.88048629,145.23,145.22,6.8829]
[1749174581147,4.8804862,145.23,145.22,6.8829]
[1749174581549,0.04570617,145.23,145.22,6.8829]
[1749174581845,0.04570617,145.23,145.21,6.92891482]
[1749174582049,0.04570617,145.23,145.21,0.04561482]
[1749174584254,0.04570617,145.23,145.21,6.92851482]
[1749174586150,0.04570617,145.23,145.21,0.04561482]
[1749174586351,0.04570617,145.23,145.22,6.8829]
[1749174589048,6.24315603,145.23,145.22,6.8829]
[1749174589755,6.24315603,145.23,145.21,6.92881482]
[1749174589955,0.04570617,145.23,145.21,6.92881482]
[1749174590753,0.04570617,145.23,145.21,0.04561482]
[1749174590962,11.02982611,145.22,145.17,9.48143687]
[1749174591146,14.21569322,145.21,145.17,7.69686711]
[1749174591455,3.18586711,145.19,145.17,6.8852]
[1749174591654,3.18586711,145.2,145.17,6.8852]
[1749174591955,6.19812556,145.19,145.17,6.93201447]
[1749174592155,3.23218403,145.2,145.17,0.04681447]
[1749174592454,6.19810622,145.19,145.17,0.04681447]
[1749174592654,3.23218403,145.2,145.17,0.04681447]
[1749174592856,6.19692222,145.19,145.17,0.04681447]
[1749174593056,3.23218403,145.2,145.17,0.04681447]
[1749174593255,6.19682842,145.19,145.17,0.04681447]
[1749174593555,0.04631692,145.2,145.17,0.04681447]
[1749174593755,6.19610311,145.19,145.17,6.93201447]
[1749174593957,6.93031692,145.2,145.17,6.93201447]
[1749174594157,6.19610496,145.19,145.17,6.93201447]
[1749174594456,6.93031692,145.2,145.17,6.93201447]
[1749174595358,6.19507432,145.19,145.17,6.93201447]
[1749174595559,6.93031692,145.2,145.17,6.93201447]
[1749174595859,0.04631692,145.2,145.18,6.8847]
[1749174596356,0.04631692,145.2,145.17,0.04681447]
[1749174597261,0.04631692,145.2,145.17,6.93191447]
[1749174601860,0.04631692,145.2,145.17,5.02590869]
[1749174602165,0.04631692,145.2,145.19,4.97909422]
[1749174603562,0.04631692,145.2,145.19,11.86339422]
[1749174612970,1.692e-05,145.2,145.19,11.86339422]
[1749174613168,35.24,145.24,145.23,6.8825]
[1749174613371,35.24,145.24,145.18,4.97909422]
[1749174613372,35.24,145.27,145.22,4.97909422]
[1749174613671,6.20674981,145.26,145.24,6.8819]
[1749174613870,6.20674981,145.25,145.24,6.8819]
[1749174614172,0.04440657,145.26,145.24,6.8819]
[1749174614664,0.04440657,145.26,145.25,6.8815]
[1749174614868,6.2507032,145.26,145.25,6.8815]
[1749174615066,6.2507032,145.26,145.24,6.8819]
[1749174615273,0.04440657,145.26,145.24,6.8819]
[1749174615971,6.20573099,145.25,145.23,0.04769911]
[1749174616173,6.20573099,145.24,145.23,0.04769911]
[1749174616373,0.04440657,145.26,145.23,6.93019911]
[1749174616569,6.20592891,145.25,145.23,0.04769911]
[1749174616872,0.04440657,145.26,145.23,0.04769911]
[1749174617072,0.04440657,145.26,145.24,6.882]
[1749174617465,6.8816,145.25,145.23,0.04769911]
[1749174617664,0.04440657,145.26,145.24,3.18377374]
[1749174617871,6.19955969,145.25,145.24,3.18377374]
[1749174618368,6.19955969,145.25,145.24,10.06577374]
[1749174618569,0.04440657,145.26,145.24,3.18377374]
[1749174619369,0.04440657,145.26,145.23,0.04769911]
[1749174619370,0.04440657,145.26,145.25,10.06527374]
[1749174621169,0.04440657,145.26,145.25,11.85387036]
[1749174628877,35.22,145.3,145.29,6.8796]
[1749174629179,6.42641238,145.37,145.29,35.22]
[1749174629376,6.19733856,145.36,145.34,4.97237036]
[1749174629583,42.0949,145.39,145.35,6.8765]
[1749174629774,13.11483211,145.38,145.36,0.04515107]
[1749174629979,6.17133871,145.37,145.36,0.04515107]
[1749174630378,6.92389974,145.38,145.36,0.04515107]
[1749174630578,6.8758,145.37,145.36,0.04515107]
[1749174631282,6.92399974,145.38,145.36,0.04515107]
[1749174631986,6.8758,145.37,145.36,0.04515107]
[1749174638984,6.8782,145.33,145.29,35.22]
[1749174639488,6.8785,145.32,145.29,6.8792]
[1749174639889,0.04705161,145.32,145.29,6.92262022]
[1749174641088,0.04705161,145.32,145.29,0.04342022]
[1749174642682,6.92555161,145.32,145.29,0.04342022]
[1749174643186,40.13237036,145.31,145.29,0.04342022]
[1749174643385,6.8792,145.3,145.29,0.04342022]
[1749174646389,40.13237036,145.31,145.29,0.04342022]
[1749174646390,47.01127036,145.31,145.29,0.04342022]
[1749174646590,40.13237036,145.31,145.29,0.04342022]
[1749174648196,47.01107036,145.31,145.29,0.04342022]
[1749174649989,40.13237036,145.31,145.29,0.04342022]
[1749174651690,35.16,145.31,145.29,0.04342022]
[1749174652987,42.0388,145.31,145.29,0.04342022]
[1749174654287,6.8792,145.3,145.29,0.04342022]
[1749174655997,42.0389,145.31,145.29,0.04342022]
[1749174658599,35.16,145.31,145.29,0.04342022]
[1749174661806,42.0391,145.31,145.29,0.04342022]
[1749174662209,6.8792,145.3,145.29,0.04342022]
[1749174662709,35.16,145.31,145.29,0.04342022]
[1749174662902,42.0388,145.31,145.29,0.04342022]
[1749174663809,35.16,145.31,145.29,0.04342022]
[1749174665713,42.0388,145.31,145.29,0.04342022]
[1749174669812,35.16,145.31,145.29,0.04342022]
[1749174670014,35.16,145.31,145.29,6.92302022]
[1749174670513,35.16,145.31,145.29,0.04342022]
[1749174671411,38.34085597,145.31,145.29,0.04342022]
[1749174671813,45.21985597,145.31,145.29,0.04342022]
[1749174673220,42.039,145.31,145.29,0.04342022]
[1749174674317,6.8792,145.3,145.29,0.04342022]
[1749174674517,13.04740115,145.3,145.29,0.04342022]
[1749174675213,6.16820115,145.3,145.29,0.04342022]
[1749174679921,9.34905712,145.3,145.29,0.04342022]
[1749174680919,16.22825712,145.3,145.29,0.04342022]
[1749174683419,6.8807,145.27,145.23,38.34085597]
[1749174683622,3.18085597,145.25,145.22,3.18085597]
[1749174683924,6.1905267,145.24,145.21,187.04760842]
[1749174684228,10.06285597,145.25,145.21,193.93080842]
[1749174684426,6.19044968,145.24,145.21,187.04760842]
[1749174684624,6.19044968,145.23,145.22,0.05210144]
[1749174684834,6.1950985,145.23,145.22,0.05210144]
[1749174685732,6.1950985,145.23,145.22,6.93490144]
[1749174686521,6.1950985,145.23,145.22,0.05210144]
[1749174686722,41.3350985,145.23,145.16,11.67264246]
[1749174687019,6.8838,145.21,145.17,6.885]
[1749174687221,6.1950985,145.2,145.16,11.67264246]
[1749174687425,11.85874246,145.22,145.16,11.67264246]
[1749174687631,0.05145745,145.2,145.18,6.93354737]
[1749174688836,0.05145745,145.2,145.18,0.04904737]
[1749174689832,6.93555745,145.2,145.18,0.04904737]
[1749174699637,6.8844,145.19,145.18,0.04904737]
[1749174699939,0.05145745,145.2,145.18,0.04904737]
[1749174701335,6.93565745,145.2,145.18,0.04904737]
[1749174702339,42.0044,145.19,145.18,0.04904737]
[1749174702533,0.05145745,145.2,145.17,4.97534246]
[1749174702735,2.258,145.25,145.19,4.97534246]
[1749174702931,2.258,145.25,145.21,4.97534246]
[1749174703234,4.97534246,145.23,145.15,4.97534246]
[1749174703536,6.92929391,145.2,145.15,4.97534246]
[1749174704140,6.8845,145.19,145.16,6.8857]
[1749174704341,6.8845,145.19,145.14,4.97534246]
[1749174704641,0.04665049,145.18,145.14,4.97534246]
[1749174705041,0.04665049,145.18,145.16,6.8855]
[1749174705844,35.16665049,145.18,145.09,35.12]
[1749174706047,0.04789956,145.15,145.11,4.97534246]
[1749174706247,6.93419956,145.15,145.1,4.97534246]
[1749174706541,0.04789956,145.15,145.1,4.97534246]
[1749174707444,0.04789956,145.15,145.12,6.8874]
[1749174708446,6.93419956,145.15,145.12,6.8874]
[1749174708944,0.04789956,145.15,145.12,6.8874]
[1749174709848,0.04789956,145.15,145.13,6.8872]
[1749174711948,0.04789956,145.15,145.12,6.8876]
[1749174712246,0.04789956,145.15,145.14,4.97534246]
[1749174712550,0.04789956,145.15,145.14,11.86204246]
[1749174713147,35.12,145.22,145.19,6.884]
[1749174713342,35.12,145.22,145.13,35.12]
[1749174713343,40.09534246,145.22,145.15,4.5612]
[1749174713645,4.97534246,145.21,145.15,4.5612]
[1749174714046,0.04888774,145.19,145.17,0.04384081]
[1749174714349,6.93358774,145.19,145.17,0.04384081]
[1749174716353,6.8848,145.18,145.17,0.04384081]
[1749174716557,35.12,145.18,145.09,2.2089]
[1749174716749,4.97534246,145.17,145.1,4.97534246]
[1749174716951,6.8868,145.14,145.09,7.18424246]
[1749174717455,0.05064617,145.13,145.11,6.8881]
[1749174720255,0.05064617,145.13,145.09,7.18424246]
[1749174720857,0.05064617,145.13,145.11,6.8878]
[1749174721055,0.05064617,145.13,145.09,2.2089]
[1749174721253,0.05064617,145.13,145.09,7.18424246]
[1749174721460,0.05064617,145.13,145.1,6.8883]
[1749174721662,0.05064617,145.13,145.09,7.18424246]
[1749174722365,0.05064617,145.13,145.11,6.8879]
[1749174725457,0.05064617,145.13,145.12,6.8877]
[1749174726158,0.05064617,145.13,145.11,6.888]
[1749174726663,0.05064617,145.13,145.09,7.18424246]
[1749174726856,0.05064617,145.13,145.1,6.8885]
[1749174727564,6.93784617,145.13,145.1,6.8885]
[1749174729462,0.05064617,145.13,145.09,7.18424246]
[1749174730165,0.05064617,145.13,145.1,6.8885]
[1749174731165,6.93784617,145.13,145.1,6.8885]
[1749174731361,0.05064617,145.13,145.09,14.07324246]
[1749174731559,0.05064617,145.13,145.07,40.09534246]
[1749174731756,6.93814617,145.13,145.07,40.09534246]
[1749174731956,6.93814617,145.13,145.09,6.8887]
[1749174732369,0.05064617,145.13,145.07,40.09534246]
[1749174732565,0.05064617,145.13,145.1,6.8884]
[1749174732866,6.93794617,145.13,145.1,6.8884]
[1749174733270,0.05064617,145.13,145.1,6.8884]
[1749174733566,6.93794617,145.13,145.1,6.8884]
[1749174736975,6.8877,145.12,145.09,6.889]
[1749174737567,6.8882,145.11,145.08,6.8892]
[1749174737769,6.8882,145.11,145.06,2.1459]
[1749174737968,0.05283043,145.1,145.06,7.12124246]
[1749174738168,6.94153043,145.1,145.07,6.89]
[1749174740780,6.94153043,145.1,145.06,11.86574246]
[1749174741272,4.97534246,145.09,145.0,2.2091]
[1749174741480,0.05176245,145.07,145.02,7.16864246]
[1749174741674,0.05176245,145.07,145.03,6.8918]
[1749174741882,35.1,145.06,145.0,9.40614246]
[1749174742083,35.1,145.06,145.01,6.8927]
[1749174742582,6.8913,145.05,145.01,6.8927]
[1749174744079,35.1,145.06,145.01,6.8927]
[1749174744483,6.8912,145.05,145.01,6.8927]
[1749174745477,41.9907,145.06,145.02,6.8923]
[1749174745681,0.04729036,145.05,145.01,4.97534246]
[1749174745984,0.04729036,145.05,145.03,6.8916]
[1749174746187,0.04729036,145.05,145.03,4.97534246]
[1749174746585,35.12,145.09,145.07,6.8897]
[1749174747089,35.12,145.09,145.05,4.97534246]
[1749174747283,35.12,145.09,145.08,6.8896]
[1749174749888,0.04396627,145.1,145.09,6.8891]
[1749174750088,0.04396627,145.1,145.09,11.86444246]
[1749174750887,0.04396627,145.1,145.07,5.01952807]
[1749174751091,0.04396627,145.1,145.07,0.04418561]
[1749174753093,6.93296627,145.1,145.07,0.04418561]
[1749174753690,6.8894,145.09,145.07,0.04418561]
[1749174753996,35.08,145.08,145.07,0.04418561]
[1749174755786,41.9696,145.08,145.07,0.04418561]
[1749174758196,35.08,145.08,145.07,0.04418561]
[1749174759387,0.04396627,145.1,145.07,0.04418561]
[1749174760295,4.97534246,145.09,145.07,0.04418561]
[1749174760994,6.8896,145.08,145.07,0.04418561]
[1749174761997,12.94481957,145.08,145.07,0.04418561]
[1749174762498,6.8907,145.06,145.02,6.8924]
[1749174762700,6.8907,145.06,144.99,4.97534246]
[1749174762701,35.08,145.06,144.99,4.97534246]
[1749174763399,6.8913,145.05,145.01,6.8926]
[1749174763605,0.04489702,145.04,144.98,35.08]
[1749174763804,0.04489702,145.04,144.98,40.05534246]
[1749174764807,0.04489702,145.04,145.01,6.8926]
[1749174765605,6.93659702,145.04,145.0,6.8933]
[1749174766004,0.04489702,145.04,145.0,6.8933]
[1749174766199,6.93659702,145.04,145.0,6.8933]
[1749174767803,0.04489702,145.04,145.01,6.8929]
[1749174768002,0.04489702,145.04,144.98,4.97534246]
[1749174768708,6.93639702,145.04,145.0,6.8931]
[1749174771910,6.892,145.03,145.0,6.8931]
[1749174772513,41.9925,145.02,144.99,6.8937]
[1749174772714,40.12380642,145.02,144.97,4.97534246]
[1749174772909,40.12380642,145.02,144.96,11.40484246]
[1749174773417,6.8935,145.0,144.96,18.29994246]
[1749174773815,4.97534246,145.0,144.96,6.8951]
[1749174774416,11.86894246,145.0,144.96,6.8951]
[1749174775212,11.86894246,145.0,144.94,4.97534246]
[1749174775408,0.04520364,144.98,144.94,4.97534246]
[1749174775918,0.04520364,144.98,144.96,6.895]
[1749174780931,0.04520364,144.98,144.92,35.1]
[1749174781133,0.04520364,144.98,144.92,40.07534246]